fUST/lending_fUST_20241210
["ID","MTS","AMOUNT","RATE_DAILY","PERIOD"]
[344808479,1733797847777,-605.487232,0.00024999,7]
[344808480,1733797847787,-605.487232,0.00024999,7]
[344808481,1733797847796,-213.317662,0.00024999,7]
[344808482,1733797847806,-213.317662,0.00024999,7]
[344808483,1733797847815,-213.317662,0.00024999,7]
[344808484,1733797847825,-213.317662,0.00024999,7]
[344808485,1733797847834,-151.0,0.00024999,7]
[344808486,1733797847844,-151.0,0.00024999,7]
[344808487,1733797847853,-582.751351,0.00024999,7]
[344808488,1733797847862,-582.751351,0.00024999,7]
[344808489,1733797847871,-582.751351,0.00024999,7]
[344808490,1733797847882,-582.751351,0.00024999,7]
[344808491,1733797847892,-241.438128,0.00024999,7]
[344808492,1733797847902,-241.438128,0.00024999,7]
[344808493,1733797847911,-241.438128,0.00024999,7]
[344808494,1733797847921,-241.438128,0.00024999,7]
[344808495,1733797847931,-219.920419,0.00024999,7]
[344808496,1733797847940,-219.920419,0.00024999,7]
[344808497,1733797847950,-219.920419,0.00024999,7]
[344808498,1733797847960,-219.920419,0.00024999,7]
[344808499,1733797847970,-219.920419,0.00024999,7]
[344808500,1733797847979,-219.920413,0.00024999,7]
[344808501,1733797847989,-677.587385,0.00024999,7]
[344808502,1733797847999,-677.587385,0.00024999,7]
[344808503,1733797848008,-677.587385,0.00024999,7]
[344808504,1733797848018,-247.018885,0.00024999,7]
[344808505,1733797848027,-677.587385,0.00024999,7]
[344808506,1733797848037,-1382.216406,0.00024999,7]
[344808507,1733797848047,-1382.216406,0.00024999,7]
[344808508,1733797848057,-1382.216406,0.00024999,7]
[344808509,1733797848066,-205.884474,0.00024999,7]
[344808510,1733797848076,-205.884474,0.00024999,7]
[344808511,1733797848085,-1382.216406,0.00024999,7]
[344808512,1733797848095,-1382.216406,0.00024999,7]
[344808513,1733797848105,-1382.216397,0.00024999,7]
[344808514,1733797848115,-205.884474,0.00024999,7]
[344808515,1733797848124,-205.884474,0.00024999,7]
[344808516,1733797848135,-799.456209,0.00024999,7]
[344808517,1733797848145,-799.456209,0.00024999,7]
[344808518,1733797848155,-799.456209,0.00024999,7]
[344808519,1733797848166,-799.456209,0.00024999,7]
[344808520,1733797848176,-151.0,0.00024999,7]
[344808521,1733797848185,-151.0,0.00024999,7]
[344808522,1733797848195,-240.548382,0.00024999,7]
[344808523,1733797848206,-370.416074,0.00024999,7]
[344808524,1733797848218,-370.416074,0.00024999,7]
[344808525,1733797848228,-370.416074,0.00024999,7]
[344808526,1733797848238,-370.416074,0.00024999,7]
[344808527,1733797848248,-343.170653,0.00024999,7]
[344808528,1733797848259,-343.170653,0.00024999,7]
[344808529,1733797848269,-343.170653,0.00024999,7]
[344808530,1733797848279,-343.170653,0.00024999,7]
[344808531,1733797848290,-343.170653,0.00024999,7]
[344808532,1733797848300,-343.170653,0.00024999,7]
[344808533,1733797848389,-151.0,0.00024999,7]
[344808534,1733797848400,-151.0,0.00024999,7]
[344808535,1733797848411,-151.0,0.00024999,7]
[344808536,1733797848421,-1970.928727,0.00024999,7]
[344808537,1733797848431,-1970.928727,0.00024999,7]
[344808538,1733797848441,-1970.928727,0.00024999,7]
[344808539,1733797848452,-1970.928727,0.00024999,7]
[344808540,1733797848462,-232.821884,0.00024999,7]
[344808541,1733797848471,-232.821884,0.00024999,7]
[344808542,1733797848481,-232.821884,0.00024999,7]
[344808543,1733797848491,-232.821884,0.00024999,7]
[344808544,1733797848500,-232.821884,0.00024999,7]
[344808545,1733797848510,-232.821879,0.00024999,7]
[344808546,1733797848520,-903.104878,0.00024999,7]
[344808547,1733797848530,-903.104878,0.00024999,7]
[344808548,1733797848540,-903.104878,0.00024999,7]
[344808549,1733797848550,-903.104886,0.00024999,7]
[344808550,1733797848562,-500.0,0.00025,2]
[344808551,1733797848573,-3913.30622114,0.00025,2]
[344808552,1733797848582,-538.645493,0.00025,7]
[344808553,1733797848592,-538.64549467,0.00025,7]
[344808554,1733797848602,-213.45565,0.00025,2]
[344808555,1733797848613,-605.487232,0.00025,7]
[344808556,1733797848623,-605.487238,0.00025,7]
[344808557,1733797848634,-213.317662,0.00025,7]
[344808558,1733797848644,-213.317662,0.00025,7]
[344808559,1733797848654,-190.05108,0.00025,7]
[344808560,1733797848664,-582.751351,0.00025,7]
[344808561,1733797848674,-582.75135399,0.00025,7]
[344808562,1733797848684,-241.438128,0.00025,7]
[344808563,1733797848697,-241.438122,0.00025,7]
[344808564,1733797848707,-677.587385,0.00025,7]
[344808565,1733797848717,-677.587391,0.00025,7]
[344808566,1733797848726,-205.884474,0.00025,7]
[344808567,1733797848737,-205.884473,0.00025,7]
[344808568,1733797848747,-799.456209,0.00025,7]
[344808569,1733797848756,-799.456215,0.00025,7]
[344808570,1733797848767,-19612.80837152,0.00025,7]
[344808571,1733797848778,-151.0,0.00025,7]
[344808572,1733797848788,-151.0,0.00025,7]
[344808573,1733797848798,-370.416074,0.00025,7]
[344808574,1733797848808,-370.416082,0.00025,7]
[344808575,1733797848817,-1970.928727,0.00025,7]
[344808576,1733797848827,-1970.928733,0.00025,7]
[344808577,1733797848837,-42432.0,0.00025,2]
[344808578,1733797848847,-136484.6932792,0.0002509,2]
[344808579,1733797848859,-28126.5,0.000251,2]
[344808580,1733797848869,-477.0,0.00025128,2]
[344808581,1733797848879,-884.89757012,0.00025383,2]
[344808582,1733797848893,-400.0,0.00025417,2]
[344808583,1733797848905,-364.99166626,0.00025457,2]
[344808584,1733797848915,-605.32064866,0.00025521,2]
[344808585,1733797848924,-505.66340169,0.00025521,2]
[344808586,1733797848934,-155.17587714,0.00025936,2]
[344808587,1733797848944,-1005.3,0.00026,31]
[344808588,1733797848954,-54284.71110027,0.00026,30]
[344808589,1733797848963,-364.99166626,0.00026015,2]
[344808590,1733797848973,-602.36720637,0.00026114,2]
[344808591,1733797848982,-152.68,0.0002616,3]
[344808592,1733797848992,-884.89757012,0.00026291,2]
[344808593,1733797849002,-400.0,0.00026293,2]
[344808594,1733797849012,-160.0,0.00026426,3]
[344808595,1733797849022,-160.0,0.00026535,4]
[344808596,1733797849032,-364.99166626,0.00026573,2]
[344808597,1733797849041,-160.0,0.00026644,5]
[344808598,1733797849051,-743.0,0.00026662,2]
[344808599,1733797849061,-160.0,0.00026753,6]
[344808600,1733797849071,-160.0,0.00026862,7]
[344808601,1733797849081,-537.475,0.00026947,2]
[344808602,1733797849091,-2371.0,0.00026947,2]
[344808603,1733797849100,-2234.682,0.00026947,2]
[344808604,1733797849110,-247.451,0.00026947,2]
[344808605,1733797849119,-160.0,0.00026971,8]
[344808606,1733797849129,-28126.5,0.00027,2]
[344808607,1733797849141,-160.0,0.0002708,9]
[344808608,1733797849151,-364.99166626,0.00027131,2]
[344808609,1733797849161,-400.0,0.00027168,2]
[344808610,1733797849171,-160.0,0.00027189,10]
[344808611,1733797849181,-884.89757012,0.000272,2]
[344808612,1733797849191,-151.11367721,0.00027209,2]
[344808613,1733797849201,-155.00879386,0.00027233,2]
[344808614,1733797849212,-160.0,0.00027298,11]
[344808615,1733797849222,-602.36720637,0.00027331,2]
[344808616,1733797849233,-500.0,0.00027397,7]
[344808617,1733797849243,-400.0,0.00027397,60]
[344808618,1733797849253,-152.456672,0.00027397,7]
[344808619,1733797849263,-151.0,0.00027397,7]
[344808620,1733797849274,-206.009821,0.00027397,7]
[344808621,1733797849284,-160.0,0.00027406,12]
[344808622,1733797849295,-1773.10171904,0.000275,2]
[344808623,1733797849305,-160.0,0.00027515,13]
[344808624,1733797849316,-160.0,0.00027624,14]
[344808625,1733797849327,-364.99166626,0.0002769,2]
[344808626,1733797849339,-160.0,0.00027733,15]
[344808627,1733797849351,-160.0,0.00027842,16]
[344808628,1733797849361,-160.0,0.00027951,17]
[344808629,1733797849371,-487.1551979,0.0002799,2]
[344808630,1733797849381,-5000.0,0.00028007,7]
[344808631,1733797849398,-160.0,0.0002806,18]
[344808632,1733797849409,-884.89757012,0.00028108,2]
[344808633,1733797849420,-160.0,0.00028169,19]
[344808634,1733797849430,-285.13364057,0.00028169,5]
[344808635,1733797849440,-364.99166626,0.00028248,2]
[344808636,1733797849512,-151.0,0.00028324,6]
[344808637,1733797849522,-151.0,0.000285,14]
[344808638,1733797849532,-602.36720637,0.00028547,2]
[344808639,1733797849543,-155.00043969,0.00028594,2]
[344808640,1733797849552,-500.0,0.0002861,30]
[344808641,1733797849563,-150.17,0.0002861,2]
[344808642,1733797849573,-151.36463391,0.0002861,30]
[344808643,1733797849583,-500.0,0.0002861,30]
[344808644,1733797849593,-151.0,0.00028663,7]
[344808645,1733797849602,-152.44816,0.000287,2]
[344808646,1733797849612,-500.0,0.00028767,9]
[344808647,1733797849622,-364.99166626,0.00028806,2]
[344808648,1733797849632,-707.292,0.0002885,120]
[344808649,1733797849643,-889.8092274,0.00028884,30]
[344808650,1733797849653,-504.37447311,0.00028884,30]
[344808651,1733797849663,-1011.4,0.000289,7]
[344808652,1733797849673,-1011.4,0.000289,7]
[344808653,1733797849682,-1011.4,0.000289,7]
[344808654,1733797849693,-1011.4,0.000289,7]
[344808655,1733797849703,-1011.4,0.000289,7]
[344808656,1733797849713,-1011.4,0.000289,7]
[344808657,1733797849723,-1011.4,0.000289,7]
[344808658,1733797849734,-1011.4,0.000289,7]
[344808659,1733797849743,-1011.4,0.000289,7]
[344808660,1733797849753,-1011.4,0.000289,7]
[344808661,1733797849762,-1011.4,0.000289,7]
[344808662,1733797849774,-1011.4,0.000289,7]
[344808663,1733797849784,-1011.4,0.000289,7]
[344808664,1733797849794,-1011.4,0.000289,7]
[344808665,1733797849804,-1011.4,0.000289,7]
[344808666,1733797849813,-1011.4,0.000289,7]
[344808667,1733797849823,-1011.4,0.000289,7]
[344808668,1733797849833,-1011.4,0.000289,7]
[344808669,1733797849843,-1011.4,0.000289,7]
[344808670,1733797849853,-1011.4,0.000289,7]
[344808671,1733797849864,-1517.1,0.000289,7]
[344808672,1733797849874,-1517.1,0.000289,7]
[344808673,1733797849883,-1517.1,0.000289,7]
[344808674,1733797849893,-1517.1,0.000289,7]
[344808675,1733797849903,-1517.1,0.000289,7]
[344808676,1733797849912,-1517.1,0.000289,7]
[344808677,1733797849922,-1517.1,0.000289,7]
[344808678,1733797849931,-1517.1,0.000289,7]
[344808679,1733797849941,-1517.1,0.000289,7]
[344808680,1733797849951,-1517.1,0.000289,7]
[344808681,1733797849961,-1517.1,0.000289,7]
[344808682,1733797849970,-1517.1,0.000289,7]
[344808683,1733797849991,-1517.1,0.000289,7]
[344808684,1733797850008,-1517.1,0.000289,7]
[344808685,1733797850028,-1517.1,0.000289,7]
[344808686,1733797850048,-1517.1,0.000289,7]
[344808687,1733797850068,-1517.1,0.000289,7]
[344808688,1733797850086,-500.0,0.00029,2]
[344808689,1733797850105,-132449.15552367,0.00029,14]
[344808690,1733797850121,-28126.5,0.00029,2]
[344808691,1733797850137,-151.0,0.00029002,7]
[344808692,1733797850156,-884.89757012,0.00029017,2]
[344808693,1733797850176,-1517.1,0.00029168,7]
[344808694,1733797850195,-209.0,0.0002917,26]
[344808695,1733797850208,-150.5,0.00029212,120]
[344808696,1733797850229,-150.5,0.00029222,120]
[344808697,1733797850244,-150.5,0.00029232,120]
[344808698,1733797850263,-150.17,0.00029295,30]
[344808699,1733797850276,-150.17,0.00029295,30]
[344808700,1733797850292,-500.0,0.00029295,30]
[344808701,1733797850307,-151.0,0.00029341,7]
[344808702,1733797850321,-364.99166626,0.00029364,2]
[344808703,1733797850337,-162.669609,0.000294,12]
[344808704,1733797850351,-1517.1,0.00029465,7]
[344808705,1733797850366,-150.17,0.00029569,30]
[344808706,1733797850382,-250.81929905,0.00029569,30]
[344808707,1733797850400,-500.0,0.00029569,30]
[344808708,1733797850416,-151.0,0.0002968,7]
[344808709,1733797850431,-12323.27908109,0.000297,2]
[344808710,1733797850448,-3993.20273322,0.0002975,2]
[344808711,1733797850464,-602.36720637,0.00029763,2]
[344808712,1733797850479,-1517.1,0.00029763,7]
[344808713,1733797850494,-39931.3012865,0.000298,2]
[344808714,1733797850508,-183.160695,0.000298,2]
[344808715,1733797850525,-160.51,0.0002984,120]
[344808716,1733797850542,-200.7792564,0.00029843,30]
[344808717,1733797850558,-706.11650364,0.00029843,30]
[344808718,1733797850573,-8726.0595282,0.00029844,2]
[344808719,1733797850879,-634.98546176,0.00029844,2]
[344808720,1733797851009,-297.71990758,0.0002489,2]
[344808722,1733798336371,3000.0,0.00029999,34]
[344808723,1733798354858,3000.0,0.00029999,39]
[344808724,1733798374399,3000.0,0.00029999,60]
[344808725,1733798441161,3000.0,0.00029999,74]
[344808726,1733798500702,3000.0,0.00029999,76]
[344808727,1733798511360,3000.0,0.00029999,83]
[344808728,1733798526123,3000.0,0.00029999,85]
[344808729,1733798535689,3000.0,0.00029999,87]
[344808730,1733798594706,3000.0,0.00029999,89]
[344808731,1733798603255,3000.0,0.00029999,91]
[344808732,1733798620698,3000.0,0.00029999,93]
[344808733,1733798630746,3000.0,0.00029999,95]
[344808734,1733798646757,3000.0,0.00029999,97]
[344808735,1733798657161,162.096866,0.00013973,2]
[344808756,1733799032610,-401.00003,0.00024395,2]
[344808759,1733799032626,-1566.54940428,0.00024395,2]
[344808761,1733799032638,-633.90707799,0.00024395,2]
[344808763,1733799032649,-556.86521642,0.00024395,2]
[344808799,1733799038600,-1841.67827131,0.00024395,2]
[344808801,1733799038610,-400.0,0.00025735,2]
[344808803,1733799038623,-400.0,0.00026687,2]
[344808805,1733799038633,-300.0,0.00026926,2]
[344808807,1733799038642,-300.0,0.00026929,2]
[344808809,1733799038652,-150.0,0.0002693,2]
[344808811,1733799038662,-2371.0,0.0002693,2]
[344808813,1733799038671,-372.156,0.0002693,2]
[344808815,1733799038681,-500.0,0.00027397,7]
[344808828,1733799038781,-4140.16572799,0.00027452,2]
[344808848,1733799038941,-7951.68381146,0.00027452,2]
[344808852,1733799038954,-12808.15046055,0.00027452,2]
[344808855,1733799038964,-400.0,0.00027639,2]
[344808858,1733799038974,-527.94,0.00028,5]
[344808861,1733799038983,-649.327,0.0002835,2]
[344808864,1733799038994,-155.00002198,0.00028523,2]
[344808867,1733799039003,-400.0,0.00028591,2]
[344808870,1733799039013,-500.0,0.00028767,9]
[344808873,1733799039023,-153.0,0.00029205,30]
[344808877,1733799039033,-153.0,0.00029205,30]
[344808880,1733799039043,-153.0,0.00029205,30]
[344808883,1733799039053,-153.0,0.00029205,30]
[344808886,1733799039063,-153.0,0.00029205,30]
[344808889,1733799039072,-209.5845965,0.00029205,30]
[344808892,1733799039080,-197.99682087,0.000294,20]
[344809057,1733799040658,-102.00317913,0.000294,20]
[344809060,1733799040674,-265.93682087,0.00029543,2]
[344809108,1733799044038,-134.06317913,0.00029543,2]
[344809109,1733799044053,-151.0,0.00029687,7]
[344809110,1733799044070,-666.0,0.00029763,2]
[344809111,1733799044083,-2593.60339964,0.00029769,2]
[344809113,1733799044098,-183.211,0.00029793,24]
[344809114,1733799044116,-499.69345394,0.00029802,2]
[344809115,1733799044135,-4953.19040021,0.00029802,2]
[344809116,1733799044147,-5053.92959979,0.00029844,2]
[344809117,1733799044163,-27860.49431399,0.00029844,2]
[344809118,1733799044178,-886.4032405,0.00029857,2]
[344809119,1733799044192,-641.61682627,0.00029862,2]
[344809120,1733799044207,-21013.85477788,0.00029863,2]
[344809121,1733799044220,-1208.44,0.00029863,7]
[344809122,1733799044233,-1208.44,0.00029863,7]
[344809123,1733799044245,-1208.44,0.00029863,7]
[344809124,1733799044257,-1208.44,0.00029863,7]
[344809125,1733799044271,-1208.44,0.00029863,7]
[344809126,1733799044284,-1208.44,0.00029863,7]
[344809127,1733799044297,-1208.44,0.00029863,7]
[344809128,1733799044311,-1208.44,0.00029863,7]
[344809129,1733799044323,-1208.44,0.00029863,7]
[344809130,1733799044334,-1208.44,0.00029863,7]
[344809131,1733799044344,-1208.44,0.00029863,7]
[344809132,1733799044354,-1208.44,0.00029863,7]
[344809133,1733799044537,-1208.44,0.00029863,7]
[344809134,1733799044560,-1208.44,0.00029863,7]
[344809135,1733799044571,-1208.44,0.00029863,7]
[344809136,1733799044582,-1208.44,0.00029863,7]
[344809137,1733799044593,-1208.44,0.00029863,7]
[344809138,1733799044603,-1208.44,0.00029863,7]
[344809139,1733799044614,-1208.44,0.00029863,7]
[344809140,1733799044624,-1208.44,0.00029863,7]
[344809141,1733799044638,-1208.44,0.00029863,7]
[344809142,1733799044648,-1208.44,0.00029863,7]
[344809143,1733799044659,-1208.44,0.00029863,7]
[344809144,1733799044669,-1208.61347213,0.00029863,7]
[344809145,1733799044678,-500.0,0.00029863,7]
[344809146,1733799044689,-500.0,0.00029863,7]
[344809147,1733799044700,-500.0,0.00029863,7]
[344809148,1733799044710,-500.0,0.00029863,7]
[344809149,1733799044721,-512.32213732,0.00029863,7]
[344809150,1733799044731,-500.0,0.00029863,7]
[344809151,1733799044740,-504.23424272,0.00029863,7]
[344809152,1733799044750,-544.72959625,0.00029863,7]
[344809153,1733799044760,-500.0,0.00029863,7]
[344809154,1733799044771,-500.0,0.00029863,7]
[344809155,1733799044782,-501.84977759,0.00029863,7]
[344809156,1733799044793,-501.69463231,0.00029863,7]
[344809157,1733799044803,-500.0,0.00029863,7]
[344809158,1733799044814,-500.0,0.00029863,7]
[344809159,1733799044824,-157.90729739,0.00029863,7]
[344809160,1733799044834,-515.63435391,0.00029863,7]
[344809161,1733799044844,-481.65431387,0.00029863,7]
[344809162,1733799044854,-553.61044285,0.00029863,7]
[344809163,1733799044864,-500.0,0.00029863,7]
[344809164,1733799044877,-500.0,0.00029863,7]
[344809165,1733799044888,-327.62995103,0.00029863,7]
[344809166,1733799044899,-633.76564906,0.00029863,7]
[344809167,1733799044909,-500.0,0.00029863,7]
[344809168,1733799044918,-502.8378077,0.00029863,7]
[344809169,1733799044929,-500.0,0.00029863,7]
[344809170,1733799044939,-500.0,0.00029863,7]
[344809171,1733799044949,-500.0,0.00029863,7]
[344809172,1733799044959,-355.16767069,0.00029863,7]
[344809173,1733799044969,-500.0,0.00029863,7]
[344809174,1733799044979,-240.37744972,0.00029863,7]
[344809175,1733799044988,-502.16021202,0.00029863,7]
[344809176,1733799044998,-203.95486952,0.00029863,7]
[344809177,1733799045008,-500.0,0.00029863,7]
[344809178,1733799045018,-501.09453334,0.00029863,7]
[344809179,1733799045029,-500.0,0.00029863,7]
[344809180,1733799045039,-500.0,0.00029863,7]
[344809181,1733799045049,-502.34091263,0.00029863,7]
[344809182,1733799045059,-500.0,0.00029863,7]
[344809183,1733799045069,-500.0,0.00029863,7]
[344809184,1733799045079,-501.23234364,0.00029863,7]
[344809185,1733799045088,-500.0,0.00029863,7]
[344809186,1733799045103,-334.96795742,0.00029863,7]
[344809187,1733799045114,-595.86434775,0.00029863,7]
[344809188,1733799045129,-500.0,0.00029863,7]
[344809189,1733799045139,-500.0,0.00029863,7]
[344809190,1733799045152,-305.86041927,0.00029863,7]
[344809191,1733799045164,-500.0,0.00029863,7]
[344809192,1733799045175,-561.31445378,0.00029863,7]
[344809193,1733799045185,-500.0,0.00029863,7]
[344809194,1733799045198,-500.0,0.00029863,7]
[344809195,1733799045210,-500.0,0.00029863,7]
[344809196,1733799045221,-500.0,0.00029863,7]
[344809197,1733799045231,-500.0,0.00029863,7]
[344809198,1733799045242,-500.0,0.00029863,7]
[344809199,1733799045251,-500.0,0.00029863,7]
[344809200,1733799045262,-500.0,0.00029863,7]
[344809201,1733799045273,-500.0,0.00029863,7]
[344809202,1733799045284,-500.0,0.00029863,7]
[344809203,1733799045294,-500.0,0.00029863,7]
[344809204,1733799045304,-500.0,0.00029863,7]
[344809205,1733799045314,-500.0,0.00029863,7]
[344809206,1733799045324,-500.0,0.00029863,7]
[344809207,1733799045335,-500.0,0.00029863,7]
[344809208,1733799045347,-500.0,0.00029863,7]
[344809209,1733799045358,-500.0,0.00029863,7]
[344809210,1733799045368,-500.0,0.00029863,7]
[344809211,1733799045380,-500.0,0.00029863,7]
[344809212,1733799045390,-500.0,0.00029863,7]
[344809213,1733799045400,-296.98510858,0.00029863,7]
[344809214,1733799045411,-505.09810417,0.00029863,7]
[344809215,1733799045421,-500.0,0.00029863,7]
[344809216,1733799045431,-500.0,0.00029863,7]
[344809217,1733799045441,-500.0,0.00029863,7]
[344809218,1733799045451,-500.0,0.00029863,7]
[344809219,1733799045461,-500.0,0.00029863,7]
[344809220,1733799045470,-500.0,0.00029863,7]
[344809221,1733799045480,-345.23163737,0.00029863,7]
[344809222,1733799045489,-500.0,0.00029863,7]
[344809223,1733799045499,-500.0,0.00029863,7]
[344809224,1733799045509,-500.0,0.00029863,7]
[344809225,1733799045518,-500.0,0.00029863,7]
[344809226,1733799045528,-500.0,0.00029863,7]
[344809227,1733799045538,-500.0,0.00029863,7]
[344809228,1733799045548,-500.0,0.00029863,7]
[344809229,1733799045558,-500.0,0.00029863,7]
[344809230,1733799045568,-189.12137637,0.00029863,7]
[344809231,1733799045577,-500.0,0.00029863,7]
[344809232,1733799045587,-500.0,0.00029863,7]
[344809233,1733799045597,-264.95495687,0.00029863,7]
[344809234,1733799045607,-500.0,0.00029863,7]
[344809235,1733799045616,-500.0,0.00029863,7]
[344809236,1733799045627,-500.0,0.00029863,7]
[344809237,1733799045637,-500.0,0.00029863,7]
[344809238,1733799045648,-500.0,0.00029863,7]
[344809239,1733799045658,-531.79367189,0.00029863,7]
[344809240,1733799045668,-500.0,0.00029863,7]
[344809241,1733799045678,-500.0,0.00029863,7]
[344809242,1733799045688,-500.0,0.00029863,7]
[344809243,1733799045698,-554.15565532,0.00029863,7]
[344809244,1733799045708,-504.69196666,0.00029863,7]
[344809245,1733799045717,-500.0,0.00029863,7]
[344809246,1733799045727,-504.88867567,0.00029863,7]
[344809247,1733799045737,-500.0,0.00029863,7]
[344809248,1733799045747,-500.0,0.00029863,7]
[344809249,1733799045757,-500.0,0.00029863,7]
[344809250,1733799045766,-500.74616518,0.00029863,7]
[344809251,1733799045777,-500.0,0.00029863,7]
[344809252,1733799045786,-501.50112091,0.00029863,7]
[344809253,1733799045796,-500.0,0.00029863,7]
[344809254,1733799045806,-500.0,0.00029863,7]
[344809255,1733799045816,-500.0,0.00029863,7]
[344809256,1733799045826,-506.85438203,0.00029863,7]
[344809257,1733799045835,-500.0,0.00029863,7]
[344809258,1733799045845,-513.42150289,0.00029863,7]
[344809259,1733799045855,-500.0,0.00029863,7]
[344809260,1733799045865,-500.0,0.00029863,7]
[344809261,1733799045875,-500.0,0.00029863,7]
[344809262,1733799045887,-500.0,0.00029863,7]
[344809263,1733799045897,-500.0,0.00029863,7]
[344809264,1733799045908,-500.0,0.00029863,7]
[344809265,1733799045918,-500.0,0.00029863,7]
[344809266,1733799045927,-500.0,0.00029863,7]
[344809267,1733799045937,-335.83263715,0.00029863,7]
[344809268,1733799045947,-500.0,0.00029863,7]
[344809269,1733799045956,-500.0,0.00029863,7]
[344809270,1733799045966,-500.0,0.00029863,7]
[344809271,1733799045975,-500.0,0.00029863,7]
[344809274,1733799045985,-498.17177264,0.00029863,7]
[344809275,1733799045995,-500.0,0.00029863,7]
[344809276,1733799046005,-500.0,0.00029863,7]
[344809277,1733799046015,-500.0,0.00029863,7]
[344809278,1733799046025,-500.0,0.00029863,7]
[344809279,1733799046035,-500.0,0.00029863,7]
[344809280,1733799046045,-500.0,0.00029863,7]
[344809281,1733799046055,-500.0,0.00029863,7]
[344809282,1733799046065,-507.11426076,0.00029863,7]
[344809283,1733799046075,-500.0,0.00029863,7]
[344809284,1733799046086,-500.0,0.00029863,7]
[344809285,1733799046096,-501.81216593,0.00029863,7]
[344809286,1733799046107,-502.91328259,0.00029863,7]
[344809287,1733799046119,-500.0,0.00029863,7]
[344809288,1733799046131,-500.0,0.00029863,7]
[344809289,1733799046142,-500.0,0.00029863,7]
[344809290,1733799046152,-500.0,0.00029863,7]
[344809291,1733799046162,-500.0,0.00029863,7]
[344809292,1733799046171,-500.0,0.00029863,7]
[344809293,1733799046181,-500.0,0.00029863,7]
[344809294,1733799046191,-500.0,0.00029863,7]
[344809295,1733799046201,-500.0,0.00029863,7]
[344809296,1733799046211,-500.0,0.00029863,7]
[344809297,1733799046220,-500.0,0.00029863,7]
[344809298,1733799046230,-500.0,0.00029863,7]
[344809299,1733799046240,-259.64228122,0.00029863,7]
[344809300,1733799046250,-500.0,0.00029863,7]
[344809301,1733799046261,-508.17242853,0.00029863,7]
[344809302,1733799046271,-500.0,0.00029863,7]
[344809303,1733799046281,-500.0,0.00029863,7]
[344809304,1733799046291,-506.71060448,0.00029863,7]
[344809305,1733799046301,-500.0,0.00029863,7]
[344809308,1733799046311,-500.0,0.00029863,7]
[344809310,1733799046321,-503.826464,0.00029863,7]
[344809312,1733799046331,-500.0,0.00029863,7]
[344809318,1733799046341,-500.0,0.00029863,7]
[344809320,1733799046351,-500.0,0.00029863,7]
[344809322,1733799046361,-500.0,0.00029863,7]
[344809324,1733799046371,-500.0,0.00029863,7]
[344809326,1733799046384,-500.0,0.00029863,7]
[344809327,1733799046394,-500.0,0.00029863,7]
[344809329,1733799046403,-500.0,0.00029863,7]
[344809331,1733799046413,-500.0,0.00029863,7]
[344809333,1733799046424,-500.0,0.00029863,7]
[344809335,1733799046434,-500.0,0.00029863,7]
[344809337,1733799046445,-500.0,0.00029863,7]
[344809339,1733799046455,-373.10965631,0.00029863,7]
[344809341,1733799046466,-500.0,0.00029863,7]
[344809343,1733799046476,-505.28229168,0.00029863,7]
[344809345,1733799046486,-500.0,0.00029863,7]